fUST/lending_fUST_20251117
["ID","MTS","AMOUNT","RATE_DAILY","PERIOD"]
[394200970,1763374239728,-1000.0,0.00014902,2]
[394200971,1763374239737,-1000.0,0.00014902,2]
[394200972,1763374239747,-1000.0,0.00014902,2]
[394200973,1763374239755,-1000.0,0.00014902,2]
[394200974,1763374239764,-1000.76438936,0.00014902,2]
[394200975,1763374239775,-487.69093618,0.00014903,2]
[394200976,1763374239784,-890.70203381,0.00015068,2]
[394200977,1763374239794,-500.0,0.00015171,2]
[394200978,1763374239804,-300.0,0.00015202,2]
[394200979,1763374239815,-300.0,0.00015202,2]
[394200980,1763374239824,-300.0,0.00015202,2]
[394200981,1763374239833,-300.0,0.00015202,2]
[394200982,1763374239842,-300.0,0.00015202,2]
[394200983,1763374239852,-300.0,0.00015202,2]
[394200984,1763374239861,-300.0,0.00015202,2]
[394200985,1763374239869,-300.0,0.00015202,2]
[394200986,1763374239879,-300.0,0.00015202,2]
[394200987,1763374239888,-300.0,0.00015202,2]
[394200988,1763374239897,-300.0,0.00015202,2]
[394200989,1763374239906,-300.0,0.00015202,2]
[394200990,1763374239915,-300.0,0.00015202,2]
[394200991,1763374239924,-300.0,0.00015202,2]
[394200992,1763374239933,-300.0,0.00015202,2]
[394200993,1763374239942,-600.0,0.00015202,2]
[394200994,1763374239951,-100000.0,0.0001532,2]
[394200995,1763374239961,-502.73202336,0.00015373,2]
[394200996,1763374239971,-500.0,0.00015373,2]
[394200997,1763374239980,-182.75279002,0.00015373,2]
[394200998,1763374239989,-500.0,0.00015373,2]
[394200999,1763374239998,-500.0,0.00015373,2]
[394201000,1763374240007,-466.99895109,0.00015373,2]
[394201001,1763374240017,-500.0,0.00015373,2]
[394201002,1763374240026,-500.0,0.00015373,2]
[394201003,1763374240035,-509.45721812,0.00015373,2]
[394201004,1763374240049,-500.0,0.00015373,2]
[394201005,1763374240058,-500.0,0.00015373,2]
[394201006,1763374240069,-357.78598318,0.00015373,2]
[394201007,1763374240079,-500.0,0.00015373,2]
[394201008,1763374240088,-500.0,0.00015373,2]
[394201009,1763374240097,-500.0,0.00015373,2]
[394201010,1763374240107,-685.90415884,0.00015421,2]
[394201011,1763374240116,-1017.26996116,0.00015421,2]
[394201012,1763374240125,-500.0,0.00015445,2]
[394201013,1763374240135,-500.0,0.00015719,2]
[394201014,1763374240144,-606.11024176,0.00015921,2]
[394201015,1763374240154,-1000.0,0.00015921,2]
[394201016,1763374240167,-164.0898945,0.00015921,2]
[394201017,1763374240176,-1000.0,0.00015921,2]
[394201018,1763374240191,-501.37329497,0.00015921,2]
[394201019,1763374240202,-500.83212326,0.00015921,2]
[394201020,1763374240211,-1004.70574074,0.00015921,2]
[394201021,1763374240221,-1000.0,0.00015921,2]
[394201022,1763374240231,-1041.04800509,0.00015921,2]
[394201023,1763374240241,-501.19443095,0.00015921,2]
[394201024,1763374240250,-500.0,0.00015993,2]
[394201025,1763374240260,-500.0,0.00016267,2]
[394201026,1763374240270,-289.0,0.00016304,2]
[394201027,1763374240279,-420.0,0.00016304,2]
[394201028,1763374240289,-1200.0,0.00016305,2]
[394201029,1763374240298,-1680.0,0.00016385,2]
[394201030,1763374240308,-510.64170624,0.00016438,2]
[394201032,1763374240318,-510.64170624,0.00016438,2]
[394201033,1763374240327,-510.64170624,0.00016438,2]
[394201034,1763374240336,-510.64170624,0.00016438,2]
[394201035,1763374240344,-510.64170624,0.00016438,2]
[394201037,1763374240354,-510.64170624,0.00016438,2]
[394201039,1763374240363,-510.64170624,0.00016438,2]
[394201041,1763374240372,-510.64170624,0.00016438,2]
[394201043,1763374240381,-510.64170624,0.00016438,2]
[394201044,1763374240390,-510.64170624,0.00016438,2]
[394201045,1763374240399,-510.64170624,0.00016438,2]
[394201046,1763374240409,-510.64170624,0.00016438,2]
[394201047,1763374240418,-510.64170624,0.00016438,2]
[394201048,1763374240428,-510.64170624,0.00016438,2]
[394201049,1763374240438,-510.64170624,0.00016438,2]
[394201050,1763374240447,-510.64170624,0.00016438,2]
[394201052,1763374240458,-510.64170624,0.00016438,2]
[394201053,1763374240469,-510.64170624,0.00016438,2]
[394201054,1763374240481,-510.64170624,0.00016438,2]
[394201055,1763374240491,-500.0,0.00016438,2]
[394201056,1763374240501,-588.0371519,0.00016438,2]
[394201057,1763374240509,-500.0,0.00016438,2]
[394201058,1763374240518,-500.0,0.00016438,2]
[394201059,1763374240528,-500.0,0.00016438,2]
[394201060,1763374240538,-500.0,0.00016438,2]
[394201061,1763374240547,-500.0,0.00016438,2]
[394201062,1763374240556,-500.0,0.00016438,2]
[394201064,1763374240567,-500.0,0.00016438,2]
[394201065,1763374240577,-500.0,0.00016438,2]
[394201066,1763374240587,-500.0,0.00016438,2]
[394201067,1763374240597,-500.0,0.00016438,2]
[394201068,1763374240609,-500.0,0.00016438,2]
[394201069,1763374240619,-500.0,0.00016438,2]
[394201070,1763374240628,-500.0,0.00016438,2]
[394201071,1763374240637,-500.0,0.00016438,2]
[394201072,1763374240647,-500.0,0.00016438,2]
[394201073,1763374240656,-500.0,0.00016438,2]
[394201074,1763374240665,-500.0,0.00016438,2]
[394201075,1763374240674,-500.0,0.00016438,2]
[394201076,1763374240684,-500.0,0.00016438,2]
[394201077,1763374240693,-500.0,0.00016438,2]
[394201078,1763374240703,-510.64170624,0.00016438,2]
[394201079,1763374240712,-500.0,0.00016438,2]
[394201080,1763374240721,-500.0,0.00016438,2]
[394201081,1763374240731,-500.0,0.00016438,2]
[394201082,1763374240740,-500.0,0.00016438,2]
[394201083,1763374240750,-500.0,0.00016438,2]
[394201084,1763374240760,-500.0,0.00016438,2]
[394201085,1763374240770,-260.36921127,0.00016438,2]
[394201086,1763374240780,-510.64170624,0.00016438,2]
[394201087,1763374240790,-500.0,0.00016438,2]
[394201088,1763374240799,-500.0,0.00016438,2]
[394201090,1763374240809,-500.0,0.00016438,2]
[394201092,1763374240819,-500.0,0.00016438,2]
[394201094,1763374240828,-500.0,0.00016438,2]
[394201095,1763374240838,-500.0,0.00016438,2]
[394201096,1763374240847,-525.00000005,0.00016438,2]
[394201097,1763374240857,-500.0,0.00016438,2]
[394201098,1763374240867,-500.0,0.00016438,2]
[394201099,1763374240877,-500.0,0.00016438,2]
[394201100,1763374240886,-500.0,0.00016438,2]
[394201101,1763374240895,-500.0,0.00016438,2]
[394201102,1763374240904,-500.0,0.00016438,2]
[394201103,1763374240914,-1004.37558909,0.00016468,2]
[394201104,1763374240923,-1500.0,0.00016468,2]
[394201105,1763374240932,-1500.0,0.00016468,2]
[394201106,1763374240942,-160.0,0.000165,2]
[394201107,1763374240951,-500.0,0.00016541,2]
[394201108,1763374240960,-5003.94,0.0001668,3]
[394201109,1763374240970,-720.0,0.00016722,2]
[394201110,1763374240980,-500.0,0.00016815,2]
[394201111,1763374240989,-218.81632146,0.00016847,2]
[394201112,1763374240999,-2000.0,0.00017016,2]
[394201113,1763374241009,-2000.0,0.00017016,2]
[394201114,1763374241018,-260.0,0.00017048,2]
[394201115,1763374241028,-500.0,0.00017088,2]
[394201116,1763374241037,-893.10531175,0.00017131,2]
[394201117,1763374241047,-500.0,0.00017362,2]
[394201118,1763374241057,-1931.38695596,0.00017564,2]
[394201119,1763374241068,-977.42487773,0.00017564,2]
[394201120,1763374241078,-360.0,0.00017596,2]
[394201121,1763374241087,-500.0,0.00017636,2]
[394201122,1763374241096,-587.0,0.00017846,2]
[394201123,1763374241106,-500.0,0.0001791,2]
[394201124,1763374241115,-1002.0,0.00018,2]
[394201125,1763374241125,-2351.0,0.00018024,2]
[394201126,1763374241134,-186.03740081,0.00018131,2]
[394201127,1763374241144,-460.0,0.00018144,2]
[394201128,1763374241155,-500.0,0.00018184,2]
[394201129,1763374241164,-346.0,0.00018294,2]
[394201130,1763374241174,-864.0,0.00018395,2]
[394201131,1763374241184,-500.0,0.00018458,2]
[394201132,1763374241194,-403.0,0.00018462,2]
[394201133,1763374241204,-165.06,0.0001865,9]
[394201134,1763374241213,-165.06,0.0001865,9]
[394201135,1763374241223,-165.06,0.0001865,9]
[394201136,1763374241236,-165.06,0.0001865,9]
[394201137,1763374241245,-158.0,0.0001865,9]
[394201138,1763374241254,-560.0,0.00018692,2]
[394201139,1763374241264,-500.0,0.00018732,2]
[394201140,1763374241273,-158.003365,0.0001875,9]
[394201141,1763374241283,-252.19508236,0.00018847,2]
[394201142,1763374241292,-240.0,0.00019,2]
[394201143,1763374241301,-395.03358643,0.00019006,2]
[394201144,1763374241393,-893.10531175,0.00019164,2]
[394201145,1763374241403,-660.0,0.0001924,2]
[394201146,1763374241412,-823.0,0.00019534,2]
[394201147,1763374241423,-19668.24603168,0.00019744,2]
[394201148,1763374241433,-760.0,0.00019788,2]
[394201149,1763374241443,-1443.0,0.00019826,2]
[394201150,1763374241452,-1152.0,0.0002,2]
[394201151,1763374241462,-5144.60684331,0.00020028,2]
[394201152,1763374241471,-1000.0,0.00020234,2]
[394201153,1763374241480,-860.0,0.00020336,2]
[394201154,1763374241490,-285.57384327,0.00020847,2]
[394201155,1763374241499,-960.0,0.00020884,2]
[394201156,1763374241509,-893.10531175,0.00021196,2]
[394201157,1763374241518,-1152.0,0.00021381,2]
[394201158,1763374241527,-1060.0,0.00021432,2]
[394201159,1763374241536,-186.03740081,0.00021466,2]
[394201160,1763374241546,-500.0,0.00021917,2]
[394201161,1763374241555,-1160.0,0.00021979,2]
[394201162,1763374241566,-1000.0,0.00022257,20]
[394201163,1763374241575,-244.0,0.00022257,20]
[394201164,1763374241585,-365.76,0.000223,7]
[394201165,1763374241595,-291.23,0.000223,14]
[394201166,1763374241604,-16175.99,0.000223,7]
[394201167,1763374241614,-185.19814475,0.00022527,2]
[394201168,1763374241624,-318.95260417,0.00022847,2]
[394201169,1763374241634,-151.0,0.000229,9]
[394201170,1763374241643,-500.0,0.00023013,2]
[394201171,1763374241656,-893.10531175,0.00023228,2]
[394201172,1763374241666,-1355.0,0.00023402,2]
[394201173,1763374241675,-3402.114146,0.00023571,2]
[394201174,1763374241685,-151.0,0.000239,9]
[394201175,1763374241694,-3402.114146,0.00023932,2]
[394201176,1763374241704,-500.0,0.00024109,2]
[394201177,1763374241715,-3402.114146,0.00024119,2]
[394201178,1763374241726,-3402.114149,0.00024416,2]
[394201179,1763374241736,-1000.0,0.00024483,20]
[394201180,1763374241745,-492.0,0.00024483,20]
[394201181,1763374241755,-554.86098729,0.00024651,2]
[394201182,1763374241764,-2017.4474593,0.00024651,2]
[394201183,1763374241773,-380.0,0.00024658,2]
[394201184,1763374241781,-49305.5856675,0.0002474,2]
[394201185,1763374241791,-318.97645925,0.0002479,2]
[394201186,1763374241801,-160.0,0.00024798,2]
[394201187,1763374241810,-400.67432439,0.00024799,2]
[394201188,1763374241820,-160.0,0.00024799,2]
[394201189,1763374241830,-58204.6468029,0.000248,2]
[394201190,1763374241839,-186.03740081,0.000248,2]
[394201191,1763374241849,-352.33136507,0.00024847,2]
[394201192,1763374241859,-500.0,0.00024873,2]
[394201193,1763374241868,-150.0,0.00024873,2]
[394201194,1763374241878,-186.459,0.000249,8]
[394201195,1763374241888,-483.010201,0.000249,7]
[394201196,1763374241898,-483.010201,0.000249,7]
[394201197,1763374241908,-483.010201,0.000249,7]
[394201198,1763374241918,-483.010201,0.000249,7]
[394201199,1763374241927,-158.003365,0.000249,2]
[394201200,1763374241937,-151.0,0.000249,7]
[394201201,1763374241947,-151.0,0.000249,7]
[394201202,1763374241956,-196.125631,0.000249,7]
[394201203,1763374241965,-151.0,0.000249,7]
[394201204,1763374241974,-1666.579997,0.000249,7]
[394201205,1763374241983,-1666.579997,0.000249,7]
[394201206,1763374241993,-1666.579997,0.000249,7]
[394201207,1763374242002,-1666.579997,0.000249,7]
[394201208,1763374242011,-239.817536,0.000249,7]
[394201209,1763374242020,-239.817536,0.000249,7]
[394201210,1763374242030,-239.817536,0.000249,7]
[394201211,1763374242039,-239.817536,0.000249,7]
[394201212,1763374242049,-151.0,0.000249,7]
[394201213,1763374242058,-151.0,0.000249,7]
[394201214,1763374242068,-473.759376,0.000249,2]
[394201215,1763374242078,-151.0,0.000249,7]
[394201216,1763374242087,-171.461143,0.000249,7]
[394201217,1763374242097,-473.759376,0.000249,2]
[394201218,1763374242107,-473.759376,0.000249,2]
[394201219,1763374242116,-473.759376,0.000249,2]
[394201220,1763374242125,-151.0,0.000249,7]
[394201221,1763374242134,-151.0,0.000249,7]
[394201222,1763374242144,-151.0,0.000249,7]
[394201223,1763374242153,-183.478233,0.000249,7]
[394201224,1763374242167,-183.478233,0.000249,7]
[394201225,1763374242176,-183.478233,0.000249,7]
[394201226,1763374242185,-183.478233,0.000249,7]
[394201227,1763374242195,-151.0,0.000249,7]
[394201228,1763374242204,-151.0,0.000249,7]
[394201229,1763374242213,-157.673838,0.000249,7]
[394201230,1763374242223,-677445.266061,0.000249,2]
[394201231,1763374242232,-151.0,0.000249,7]
[394201232,1763374242243,-151.0,0.000249,7]
[394201233,1763374242252,-151.0,0.000249,7]
[394201234,1763374242261,-200.802667,0.000249,7]
[394201235,1763374242271,-151.0,0.000249,7]
[394201236,1763374242280,-2000.0,0.00024986,7]
[394201237,1763374242291,-3233.59148905,0.0002499,2]
[394201238,1763374242299,-27724.14174265,0.00025,5]
[394201239,1763374242309,-214.46937146,0.00025,2]
[394201240,1763374242320,-158.003365,0.00025032,2]
[394201241,1763374242329,-158.003365,0.00025164,2]
[394201242,1763374242339,-500.0,0.00025205,2]
[394201243,1763374242349,-5144.60684331,0.00025257,2]
[394201244,1763374242359,-893.10531175,0.0002526,2]
[394201245,1763374242368,-158.003365,0.00025297,2]
[394201246,1763374242377,-365.76,0.000254,7]
[394201247,1763374242386,-291.23,0.000254,14]
[394201248,1763374242396,-16175.99,0.000254,7]
[394201249,1763374242406,-250.66670203,0.00025421,2]
[394201250,1763374242415,-300.0,0.00025421,2]
[394201251,1763374242424,-158.003365,0.00025429,2]
[394201252,1763374242434,-574.15762665,0.00025928,2]
[394201253,1763374242443,-300.0,0.00025968,2]
[394201254,1763374242452,-3233.59148905,0.00026269,2]
[394201255,1763374242462,-359.11498254,0.00026274,2]
[394201256,1763374242472,-281.3218182,0.00026289,2]
[394201257,1763374242481,-506.37927277,0.00026289,2]
[394201258,1763374242490,-745.01426676,0.00026289,2]
[394201259,1763374242500,-1341.02568017,0.00026289,2]
[394201260,1763374242509,-500.0,0.00026301,2]
[394201261,1763374242518,-359.11498254,0.00026501,17]
[394201262,1763374242528,-2000.0,0.0002655,7]
[394201263,1763374242537,-1251.63690773,0.00026603,2]
[394201264,1763374242547,-734.661311,0.00026676,2]
[394201265,1763374242557,-359.11498254,0.00026729,32]
[394201266,1763374242569,-385.71012597,0.00026847,2]
[394201267,1763374242578,-1000.0,0.00026931,30]
[394201268,1763374242587,-791.0,0.00026931,30]
[394201269,1763374242597,-359.11498254,0.00026956,48]
[394201270,1763374242606,-359.11498254,0.00027184,63]
[394201271,1763374242615,-893.10531175,0.00027293,2]
[394201272,1763374242626,-10000.0,0.00027297,2]
[394201273,1763374242635,-3987.21005581,0.00027356,2]
[394201274,1763374242644,-196.96,0.00027397,59]
[394201275,1763374242654,-151.0,0.00027397,7]
[394201276,1763374242664,-500.0,0.00027397,2]
[394201277,1763374242674,-151.0,0.00027397,7]
[394201278,1763374242684,-151.0,0.00027397,7]
[394201279,1763374242696,-151.0,0.00027397,7]
[394201280,1763374242705,-151.0,0.00027397,7]
[394201281,1763374242714,-151.0,0.00027397,7]
[394201282,1763374242723,-151.0,0.00027397,7]
[394201283,1763374242732,-151.0,0.00027397,7]
[394201284,1763374242741,-151.0,0.00027397,7]
[394201285,1763374242750,-151.0,0.00027397,7]
[394201286,1763374242759,-563.264741,0.00027397,7]
[394201287,1763374242769,-151.0,0.00027397,7]
[394201288,1763374242778,-202.290544,0.00027397,7]
[394201289,1763374242787,-563.264741,0.00027397,7]
[394201290,1763374242796,-202.290544,0.00027397,7]
[394201291,1763374242806,-563.264741,0.00027397,7]
[394201292,1763374242816,-563.264741,0.00027397,7]
[394201293,1763374242825,-202.290544,0.00027397,7]
[394201294,1763374242835,-151.0,0.00027397,7]
[394201295,1763374242845,-202.290544,0.00027397,7]
[394201296,1763374242854,-240.0,0.00027397,7]
[394201297,1763374242863,-240.0,0.00027397,7]
[394201298,1763374242874,-151.0,0.00027397,7]
[394201299,1763374242884,-240.0,0.00027397,7]
[394201300,1763374242894,-151.0,0.00027397,7]
[394201301,1763374242903,-240.0,0.00027397,7]
[394201302,1763374242912,-151.0,0.00027397,7]
[394201303,1763374242922,-151.0,0.00027397,7]
[394201304,1763374242931,-151.0,0.00027397,7]
[394201305,1763374242941,-151.0,0.00027397,7]
[394201306,1763374242950,-151.0,0.00027397,7]
[394201307,1763374242960,-151.0,0.00027397,7]
[394201308,1763374242969,-256.548932,0.00027397,7]
[394201309,1763374242978,-151.0,0.00027397,7]
[394201310,1763374242988,-151.0,0.00027397,7]
[394201311,1763374242996,-151.0,0.00027397,7]
[394201312,1763374243005,-151.0,0.00027397,7]
[394201313,1763374243015,-151.0,0.00027397,7]
[394201314,1763374243024,-151.0,0.00027397,7]
[394201315,1763374243033,-238.818023,0.00027397,7]
[394201316,1763374243042,-162.30121,0.00027397,7]
[394201317,1763374243052,-223.388984,0.00027397,7]
[394201318,1763374243061,-223.388984,0.00027397,7]
[394201319,1763374243071,-223.388984,0.00027397,7]
[394201320,1763374243080,-223.388984,0.00027397,7]
[394201321,1763374243089,-263.634693,0.00027397,7]
[394201322,1763374243099,-263.634693,0.00027397,7]
[394201323,1763374243110,-263.634693,0.00027397,7]
[394201324,1763374243120,-263.634693,0.00027397,7]
[394201328,1763374243129,-300.260538,0.00027397,7]
[394201329,1763374243208,-151.0,0.00027397,7]
[394201331,1763374243218,-151.0,0.00027397,7]
[394201332,1763374243228,-151.0,0.00027397,7]
[394201333,1763374243238,-157.611051,0.00027397,7]
[394201334,1763374243249,-151.0,0.00027397,7]
[394201335,1763374243259,-151.0,0.00027397,7]
[394201336,1763374243268,-472.736239,0.00027397,7]
[394201337,1763374243277,-472.736239,0.00027397,7]
[394201338,1763374243286,-472.736239,0.00027397,7]
[394201339,1763374243296,-472.736239,0.00027397,7]
[394201340,1763374243305,-151.0,0.00027397,7]
[394201341,1763374243315,-151.0,0.00027397,7]
[394201342,1763374243324,-151.0,0.00027397,7]
[394201343,1763374243333,-151.0,0.00027397,7]
[394201344,1763374243343,-271.274429,0.00027397,7]
[394201345,1763374243353,-245.603188,0.00027397,7]
[394201346,1763374243364,-245.603188,0.00027397,7]
[394201347,1763374243373,-245.603188,0.00027397,7]
[394201348,1763374243383,-245.603188,0.00027397,7]
[394201349,1763374243392,-151.0,0.00027397,7]
[394201350,1763374243401,-151.0,0.00027397,7]
[394201351,1763374243410,-151.0,0.00027397,7]
[394201352,1763374243419,-151.0,0.00027397,7]
[394201353,1763374243428,-151.0,0.00027397,7]
[394201354,1763374243437,-340.394687,0.00027397,7]
[394201355,1763374243447,-340.394687,0.00027397,7]
[394201357,1763374243457,-340.394687,0.00027397,7]
[394201359,1763374243466,-340.394687,0.00027397,7]
[394201360,1763374243475,-151.0,0.00027397,7]
[394201361,1763374243484,-238.968027,0.00027397,7]
[394201362,1763374243494,-238.968027,0.00027397,7]
[394201363,1763374243503,-238.968027,0.00027397,7]
[394201364,1763374243513,-238.968027,0.00027397,7]
[394201365,1763374243523,-151.0,0.00027397,7]
[394201366,1763374243532,-2012.364292,0.00027397,7]
[394201367,1763374243541,-151.0,0.00027397,7]
[394201369,1763374243550,-2012.364292,0.00027397,7]
[394201370,1763374243560,-151.0,0.00027397,7]
[394201372,1763374243570,-2012.364292,0.00027397,7]
[394201373,1763374243579,-2012.364292,0.00027397,7]
[394201374,1763374243589,-230.758235,0.00027397,7]
[394201375,1763374243598,-230.758235,0.00027397,7]
[394201376,1763374243607,-230.758235,0.00027397,7]
[394201377,1763374243618,-230.758235,0.00027397,7]
[394201378,1763374243630,-243.841826,0.00027397,7]
[394201379,1763374243639,-243.841826,0.00027397,7]
[394201380,1763374243648,-243.841826,0.00027397,7]
[394201382,1763374243659,-243.841826,0.00027397,7]
[394201383,1763374243668,-151.0,0.00027397,7]
[394201384,1763374243678,-151.0,0.00027397,7]
[394201385,1763374243688,-151.0,0.00027397,7]
[394201386,1763374243699,-283.082972,0.00027397,7]
[394201387,1763374243709,-247.226217,0.00027397,7]
[394201388,1763374243719,-584.750061,0.00027397,7]
[394201389,1763374243728,-247.226217,0.00027397,7]
[394201390,1763374243736,-584.750061,0.00027397,7]
[394201391,1763374243745,-247.226217,0.00027397,7]
[394201392,1763374243755,-151.0,0.00027397,7]
[394201393,1763374243764,-584.750061,0.00027397,7]
[394201394,1763374243773,-151.0,0.00027397,7]
[394201395,1763374243782,-247.226217,0.00027397,7]
[394201396,1763374243792,-151.0,0.00027397,7]
[394201397,1763374243801,-584.750061,0.00027397,7]
[394201398,1763374243811,-151.0,0.00027397,7]
[394201399,1763374243821,-326.334582,0.00027397,7]
[394201400,1763374243830,-151.0,0.00027397,7]
[394201401,1763374243839,-326.334582,0.00027397,7]
[394201402,1763374243849,-151.0,0.00027397,7]
[394201403,1763374243859,-151.0,0.00027397,7]
[394201404,1763374243869,-326.334582,0.00027397,7]
[394201405,1763374243878,-151.0,0.00027397,7]
[394201406,1763374243887,-326.334582,0.00027397,7]
[394201407,1763374243896,-151.0,0.00027397,7]
[394201408,1763374243906,-166.288717,0.00027397,7]
[394201409,1763374243917,-159.79107,0.00027397,7]
[394201410,1763374243927,-194.32699,0.00027397,7]
[394201411,1763374243936,-159.79107,0.00027397,7]
[394201412,1763374243945,-159.79107,0.00027397,7]
[394201413,1763374243954,-159.79107,0.00027397,7]
[394201414,1763374243963,-194.32699,0.00027397,7]
[394201415,1763374243973,-194.32699,0.00027397,7]
[394201416,1763374243983,-194.32699,0.00027397,7]
[394201417,1763374243992,-151.0,0.00027397,7]
[394201418,1763374244001,-169.161814,0.00027397,7]
[394201419,1763374244010,-169.161814,0.00027397,7]
[394201420,1763374244020,-237.261692,0.00027397,7]
[394201421,1763374244029,-151.0,0.00027397,7]
[394201422,1763374244038,-169.161814,0.00027397,7]
[394201423,1763374244047,-237.261692,0.00027397,7]
[394201424,1763374244056,-169.161814,0.00027397,7]
[394201425,1763374244066,-237.261692,0.00027397,7]
[394201426,1763374244076,-160.996517,0.00027397,7]
[394201427,1763374244086,-237.261692,0.00027397,7]
[394201428,1763374244095,-185.445324,0.00027397,7]
[394201429,1763374244105,-151.0,0.00027397,7]
[394201430,1763374244115,-185.445324,0.00027397,7]
[394201431,1763374244123,-185.445324,0.00027397,7]
[394201432,1763374244132,-185.445324,0.00027397,7]
[394201433,1763374244142,-182.489227,0.00027397,7]
[394201434,1763374244152,-182.489227,0.00027397,7]
[394201435,1763374244166,-151.0,0.00027397,7]
[394201436,1763374244178,-151.0,0.00027397,7]
[394201438,1763374244187,-182.489227,0.00027397,7]
[394201439,1763374244198,-182.489227,0.00027397,7]
[394201440,1763374244207,-151.0,0.00027397,7]
[394201441,1763374244216,-151.0,0.00027397,7]
[394201442,1763374244225,-151.0,0.00027397,7]
[394201444,1763374244236,-151.0,0.00027397,7]
[394201446,1763374244246,-151.0,0.00027397,7]
[394201448,1763374244255,-151.0,0.00027397,7]
[394201450,1763374244265,-151.0,0.00027397,7]
[394201452,1763374244274,-151.0,0.00027397,7]
[394201453,1763374244284,-151.0,0.00027397,7]
[394201454,1763374244293,-1619.983105,0.00027397,7]
[394201455,1763374244302,-257.267884,0.00027397,7]
[394201456,1763374244312,-151.0,0.00027397,7]
[394201457,1763374244321,-1619.983105,0.00027397,7]
[394201458,1763374244330,-257.267884,0.00027397,7]
[394201459,1763374244339,-151.0,0.00027397,7]
[394201460,1763374244349,-257.267884,0.00027397,7]
[394201461,1763374244358,-1619.983105,0.00027397,7]
[394201462,1763374244367,-151.0,0.00027397,7]
[394201463,1763374244376,-257.267884,0.00027397,7]
[394201464,1763374244385,-1619.983105,0.00027397,7]
[394201465,1763374244394,-151.0,0.00027397,7]
[394201466,1763374244403,-151.0,0.00027397,7]
[394201467,1763374244412,-151.0,0.00027397,7]
[394201468,1763374244422,-151.0,0.00027397,7]
[394201469,1763374244430,-151.0,0.00027397,7]
[394201470,1763374244439,-151.0,0.00027397,7]
[394201471,1763374244448,-151.0,0.00027397,7]
[394201472,1763374244457,-151.0,0.00027397,7]
[394201473,1763374244466,-154.98233,0.00027397,7]
[394201474,1763374244475,-151.0,0.00027397,7]
[394201475,1763374244484,-154.98233,0.00027397,7]
[394201476,1763374244494,-10000.0,0.00027397,7]
[394201477,1763374244503,-1641.26,0.000274,2]
[394201478,1763374244513,-16175.99,0.000274,7]
[394201479,1763374244522,-359.11498254,0.00027411,79]
[394201480,1763374244532,-365.76,0.000275,7]
[394201481,1763374244541,-291.23,0.000275,14]
[394201482,1763374244550,-49305.5856675,0.00027504,2]
[394201483,1763374244559,-359.11498254,0.00027638,94]
[394201484,1763374244570,-359.11498254,0.00027866,110]
[394201485,1763374244581,-510.68700753,0.00028003,2]
[394201486,1763374244590,-2000.0,0.00028113,7]
[394201487,1763374244599,-500.0,0.00028493,2]
[394201488,1763374244609,-419.08888687,0.00028847,2]
[394201489,1763374244619,-37263.5585867,0.00029,14]
[394201490,1763374244639,-14605.97522235,0.00029,14]
[394201491,1763374244649,-412.0,0.00029,14]
[394201492,1763374244735,-154.98233,0.00027397,7]
[394201493,1763374244744,-746.34233091,0.00027397,7]
[394201494,1763374245006,-3e-08,0.00027397,7]